[Event "Titled Tuesday Blitz January 31 Early 2023"]
[White "Tan, Zhongyi"]
[Black "Rosenberg, Evan S"]
[WhiteFideId "8603642"]
[BlackFideId "2019299"]
[WhiteElo "2517"]
[BlackElo "1956"]
[Result "1-0"]
[Round "01"]
[TimeControl "180+2"]
[Date "2023.01.31"]
[WhiteClock "0:00:26"]
[BlackClock "0:00:03"]

1. d4 {[%clk 0:03:00]}  d5 {[%clk 0:02:59]} 2. c4 {[%clk 0:03:01]}  e6 {[%clk 0:02:59]} 3. Nc3 {[%clk 0:03:01]}  c5 {[%clk 0:03:00]} 4. cxd5 {[%clk 0:02:58]}  cxd4 {[%clk 0:03:00]} 5. Qa4+ {[%clk 0:02:56]}  Bd7 {[%clk 0:03:00]} 6. Qxd4 {[%clk 0:02:55]}  exd5 {[%clk 0:03:00]} 7. Qxd5 {[%clk 0:02:55]}  Nf6 {[%clk 0:03:00]} 8. Qd1 {[%clk 0:02:54]}  Bc5 {[%clk 0:02:50]} 9. Nf3 {[%clk 0:02:44]}  O-O {[%clk 0:02:49]} 10. g3 {[%clk 0:02:10]}  Qb6 {[%clk 0:01:55]} 11. e3 {[%clk 0:02:09]}  Bc6 {[%clk 0:01:49]} 12. Bg2 {[%clk 0:02:09]}  Rd8 {[%clk 0:01:48]} 13. Qe2 {[%clk 0:02:08]}  Ne4 {[%clk 0:01:40]} 14. O-O {[%clk 0:02:02]}  Nxc3 {[%clk 0:01:35]} 15. bxc3 {[%clk 0:02:03]}  Bb5 {[%clk 0:01:36]} 16. c4 {[%clk 0:02:03]}  Ba6 {[%clk 0:01:30]} 17. Rd1 {[%clk 0:01:40]}  Nc6 {[%clk 0:01:22]} 18. Bd2 {[%clk 0:01:33]}  h6 {[%clk 0:01:12]} 19. Bc3 {[%clk 0:01:30]}  Rxd1+ {[%clk 0:00:50]} 20. Rxd1 {[%clk 0:01:31]}  Rd8 {[%clk 0:00:50]} 21. Rxd8+ {[%clk 0:01:29]}  Qxd8 {[%clk 0:00:49]} 22. Nd2 {[%clk 0:01:30]}  Qb6 {[%clk 0:00:24]} 23. Bd5 {[%clk 0:01:21]}  Bb4 {[%clk 0:00:17]} 24. Qf3 {[%clk 0:01:07]}  Nd8 {[%clk 0:00:17]} 25. e4 {[%clk 0:00:50]}  Bxc3 {[%clk 0:00:15]} 26. Qxc3 {[%clk 0:00:51]}  Ne6 {[%clk 0:00:13]} 27. Nf3 {[%clk 0:00:43]}  Qb1+ {[%clk 0:00:12]} 28. Kg2 {[%clk 0:00:43]}  Qxa2 {[%clk 0:00:11]} 29. Ne5 {[%clk 0:00:33]}  Nc5 {[%clk 0:00:07]} 30. Bxf7+ {[%clk 0:00:30]}  Kh7 {[%clk 0:00:07]} 31. Bg6+ {[%clk 0:00:28]}  Kg8 {[%clk 0:00:07]} 32. Qd4 {[%clk 0:00:27]}  Ne6 {[%clk 0:00:03]} 33. Bf7+ {[%clk 0:00:26]} 1-0


[Site "https://www.chess.com"]

[Event "Titled Tuesday Blitz January 31 Early 2023"]
[White "Cunha, Lucas Aguiar"]
[Black "Fernandez Siles, Luis"]
[WhiteFideId "2125404"]
[BlackFideId "2209420"]
[WhiteElo "2309"]
[BlackElo "2218"]
[Result "1-0"]
[Round "01"]
[TimeControl "180+2"]
[Date "2023.01.31"]
[WhiteClock "0:00:35"]
[BlackClock "0:00:04"]

1. e4 {[%clk 0:02:59]}  c5 {[%clk 0:02:59]} 2. Nf3 {[%clk 0:02:59]}  Nc6 {[%clk 0:02:59]} 3. Nc3 {[%clk 0:02:59]}  g6 {[%clk 0:02:58]} 4. d4 {[%clk 0:02:59]}  cxd4 {[%clk 0:02:59]} 5. Nxd4 {[%clk 0:02:59]}  Bg7 {[%clk 0:02:59]} 6. Nb3 {[%clk 0:03:00]}  Nf6 {[%clk 0:02:58]} 7. g4 {[%clk 0:02:59]}  d6 {[%clk 0:02:34]} 8. g5 {[%clk 0:02:59]}  Nd7 {[%clk 0:02:34]} 9. Be3 {[%clk 0:02:56]}  O-O {[%clk 0:02:33]} 10. h4 {[%clk 0:02:55]}  Nb6 {[%clk 0:02:23]} 11. h5 {[%clk 0:02:40]}  Ne5 {[%clk 0:02:22]} 12. Be2 {[%clk 0:02:38]}  Nbc4 {[%clk 0:02:21]} 13. Bc1 {[%clk 0:02:39]}  b5 {[%clk 0:01:53]} 14. Nxb5 {[%clk 0:02:33]}  Bb7 {[%clk 0:01:43]} 15. f4 {[%clk 0:02:28]}  Bxe4 {[%clk 0:01:41]} 16. Rf1 {[%clk 0:02:16]}  Qb6 {[%clk 0:01:28]} 17. Nc3 {[%clk 0:02:12]}  Nxb2 {[%clk 0:00:58]} 18. Bxb2 {[%clk 0:02:09]}  Nc4 {[%clk 0:00:55]} 19. Bxc4 {[%clk 0:02:07]}  Qe3+ {[%clk 0:00:53]} 20. Be2 {[%clk 0:01:45]}  Bxc3+ {[%clk 0:00:52]} 21. Bxc3 {[%clk 0:01:46]}  Qxc3+ {[%clk 0:00:47]} 22. Qd2 {[%clk 0:01:46]}  Qg3+ {[%clk 0:00:46]} 23. Rf2 {[%clk 0:01:47]}  Rac8 {[%clk 0:00:43]} 24. c4 {[%clk 0:01:33]}  Qg1+ {[%clk 0:00:43]} 25. Rf1 {[%clk 0:01:28]}  Qg3+ {[%clk 0:00:43]} 26. Kd1 {[%clk 0:01:18]}  d5 {[%clk 0:00:35]} 27. c5 {[%clk 0:01:16]}  a5 {[%clk 0:00:31]} 28. Qxa5 {[%clk 0:01:11]}  Ra8 {[%clk 0:00:30]} 29. Qb4 {[%clk 0:00:59]}  Rfb8 {[%clk 0:00:29]} 30. Qd4 {[%clk 0:00:59]}  Ra3 {[%clk 0:00:15]} 31. c6 {[%clk 0:00:54]}  Rc8 {[%clk 0:00:14]} 32. Qc5 {[%clk 0:00:47]}  d4 {[%clk 0:00:13]} 33. Qxa3 {[%clk 0:00:39]}  d3 {[%clk 0:00:08]} 34. Qb2 {[%clk 0:00:39]}  dxe2+ {[%clk 0:00:08]} 35. Qxe2 {[%clk 0:00:40]}  Qc3 {[%clk 0:00:08]} 36. Qxe4 {[%clk 0:00:37]}  Rxc6 {[%clk 0:00:05]} 37. Rc1 {[%clk 0:00:35]}  Rd6+ {[%clk 0:00:05]} 38. Ke2 {[%clk 0:00:36]}  Qb2+ {[%clk 0:00:04]} 39. Rc2 {[%clk 0:00:36]}  Qa3 {[%clk 0:00:04]} 40. Rc8+ {[%clk 0:00:35]} 1-0


[Site "https://www.chess.com"]

[Event "Titled Tuesday Blitz January 31 Early 2023"]
[White "Koellner, Ruben Gideon"]
[Black "Ruiz Aguilar, Pablo Alexander"]
[WhiteFideId "12993093"]
[BlackFideId "4401352"]
[WhiteElo "2426"]
[BlackElo "2161"]
[Result "1-0"]
[Round "01"]
[TimeControl "180+2"]
[Date "2023.01.31"]
[WhiteClock "0:00:40"]
[BlackClock "0:00:04"]

1. d4 {[%clk 0:02:53]}  d5 {[%clk 0:02:57]} 2. Nf3 {[%clk 0:02:29]}  Nf6 {[%clk 0:02:57]} 3. e3 {[%clk 0:02:24]}  c6 {[%clk 0:02:57]} 4. Nbd2 {[%clk 0:02:23]}  Bg4 {[%clk 0:02:55]} 5. h3 {[%clk 0:02:22]}  Bh5 {[%clk 0:02:53]} 6. g4 {[%clk 0:02:21]}  Bg6 {[%clk 0:02:53]} 7. Ne5 {[%clk 0:02:21]}  e6 {[%clk 0:02:47]} 8. h4 {[%clk 0:02:21]}  h6 {[%clk 0:02:31]} 9. Nxg6 {[%clk 0:02:20]}  fxg6 {[%clk 0:02:32]} 10. Bd3 {[%clk 0:02:21]}  Kf7 {[%clk 0:02:26]} 11. Qf3 {[%clk 0:02:20]}  Bd6 {[%clk 0:02:14]} 12. g5 {[%clk 0:02:19]}  hxg5 {[%clk 0:02:14]} 13. hxg5 {[%clk 0:02:20]}  Rxh1+ {[%clk 0:02:13]} 14. Qxh1 {[%clk 0:02:21]}  Nh5 {[%clk 0:02:12]} 15. Qf3+ {[%clk 0:02:21]}  Nf6 {[%clk 0:00:47]} 16. gxf6 {[%clk 0:02:18]}  gxf6 {[%clk 0:00:46]} 17. Qh3 {[%clk 0:02:14]}  Qg8 {[%clk 0:00:41]} 18. Nf3 {[%clk 0:02:02]}  Nd7 {[%clk 0:00:41]} 19. Bd2 {[%clk 0:01:57]}  Qg7 {[%clk 0:00:38]} 20. O-O-O {[%clk 0:01:55]}  Rh8 {[%clk 0:00:38]} 21. Qg2 {[%clk 0:01:54]}  g5 {[%clk 0:00:21]} 22. Rh1 {[%clk 0:01:53]}  Rxh1+ {[%clk 0:00:20]} 23. Qxh1 {[%clk 0:01:54]}  g4 {[%clk 0:00:17]} 24. Qh5+ {[%clk 0:01:52]}  Ke7 {[%clk 0:00:17]} 25. Nh4 {[%clk 0:01:49]}  Nf8 {[%clk 0:00:15]} 26. e4 {[%clk 0:01:46]}  dxe4 {[%clk 0:00:13]} 27. Bxe4 {[%clk 0:01:45]}  g3 {[%clk 0:00:14]} 28. fxg3 {[%clk 0:01:39]}  Qxg3 {[%clk 0:00:13]} 29. c3 {[%clk 0:01:23]}  Bf4 {[%clk 0:00:10]} 30. Nf3 {[%clk 0:00:55]}  Bxd2+ {[%clk 0:00:07]} 31. Nxd2 {[%clk 0:00:56]}  f5 {[%clk 0:00:04]} 32. Bf3 {[%clk 0:00:52]}  Ng6 {[%clk 0:00:04]} 33. Qh7+ {[%clk 0:00:47]}  Kf6 {[%clk 0:00:04]} 34. Qxb7 {[%clk 0:00:41]}  Nh4 {[%clk 0:00:04]} 35. Qxc6 {[%clk 0:00:40]} 1-0


[Site "https://www.chess.com"]

[Event "Titled Tuesday Blitz January 31 Early 2023"]
[White "Orujov, Elshad"]
[Black "Volkov, Maksim"]
[WhiteFideId "13403540"]
[BlackFideId "54123070"]
[WhiteElo "2304"]
[BlackElo "2258"]
[Result "0-1"]
[Round "01"]
[TimeControl "180+2"]
[Date "2023.01.31"]
[WhiteClock "0:00:03"]
[BlackClock "0:01:06"]

1. e4 {[%clk 0:03:00]}  c5 {[%clk 0:02:59]} 2. Nf3 {[%clk 0:03:00]}  d6 {[%clk 0:02:59]} 3. d4 {[%clk 0:03:00]}  cxd4 {[%clk 0:03:00]} 4. Nxd4 {[%clk 0:03:01]}  Nf6 {[%clk 0:03:00]} 5. Nc3 {[%clk 0:03:02]}  a6 {[%clk 0:03:00]} 6. h3 {[%clk 0:03:02]}  e5 {[%clk 0:02:59]} 7. Nde2 {[%clk 0:03:01]}  h5 {[%clk 0:02:57]} 8. Bg5 {[%clk 0:03:00]}  Be6 {[%clk 0:02:55]} 9. Bxf6 {[%clk 0:03:00]}  Qxf6 {[%clk 0:02:55]} 10. Nd5 {[%clk 0:03:01]}  Qd8 {[%clk 0:02:53]} 11. Nec3 {[%clk 0:03:00]}  Nd7 {[%clk 0:02:52]} 12. Bc4 {[%clk 0:03:00]}  Rc8 {[%clk 0:02:41]} 13. Bb3 {[%clk 0:03:00]}  g6 {[%clk 0:02:38]} 14. O-O {[%clk 0:03:00]}  Nc5 {[%clk 0:02:35]} 15. Qe2 {[%clk 0:02:59]}  Bg7 {[%clk 0:02:34]} 16. Rad1 {[%clk 0:02:58]}  O-O {[%clk 0:02:34]} 17. Kh1 {[%clk 0:02:55]}  Bd7 {[%clk 0:02:29]} 18. Ne3 {[%clk 0:02:52]}  Bc6 {[%clk 0:02:28]} 19. Nc4 {[%clk 0:02:51]}  Qh4 {[%clk 0:02:09]} 20. Nxd6 {[%clk 0:02:43]}  Rcd8 {[%clk 0:02:08]} 21. Nxf7 {[%clk 0:02:21]}  Rxd1 {[%clk 0:02:05]} 22. Rxd1 {[%clk 0:02:22]}  Nxb3 {[%clk 0:02:04]} 23. Nxe5 {[%clk 0:01:40]}  Bxe5 {[%clk 0:01:59]} 24. axb3 {[%clk 0:01:37]}  Rxf2 {[%clk 0:01:56]} 25. Qc4+ {[%clk 0:01:34]}  Kg7 {[%clk 0:01:56]} 26. Qd3 {[%clk 0:00:26]}  Rf7 {[%clk 0:01:35]} 27. Nd5 {[%clk 0:00:22]}  Qg5 {[%clk 0:01:28]} 28. c4 {[%clk 0:00:14]}  Rf2 {[%clk 0:01:26]} 29. Ne3 {[%clk 0:00:08]}  Qg3 {[%clk 0:01:25]} 30. Kg1 {[%clk 0:00:05]}  Rxg2+ {[%clk 0:01:25]} 31. Nxg2 {[%clk 0:00:04]}  Qh2+ {[%clk 0:01:23]} 32. Kf2 {[%clk 0:00:04]}  h4 {[%clk 0:01:10]} 33. Qf3 {[%clk 0:00:04]}  Bg3+ {[%clk 0:01:08]} 34. Ke2 {[%clk 0:00:04]}  Qxh3 {[%clk 0:01:08]} 35. Rd4 {[%clk 0:00:03]}  Qe6 {[%clk 0:01:07]} 36. Rd3 {[%clk 0:00:02]}  Bxe4 {[%clk 0:01:06]} 37. Qe3 {[%clk 0:00:02]}  Bxd3+ {[%clk 0:01:06]} 38. Kxd3 {[%clk 0:00:03]}  Qxe3+ {[%clk 0:01:06]} 39. Kxe3 {[%clk 0:00:03]}  h3 {[%clk 0:01:06]} 40. Kf3 {[%clk 0:00:02]}  hxg2 {[%clk 0:01:06]} 41. Kxg2 {[%clk 0:00:03]}  Be5 {[%clk 0:01:06]} 42. Kf3 {[%clk 0:00:03]}  Bxb2 {[%clk 0:01:06]} 0-1


[Site "https://www.chess.com"]

[Event "Titled Tuesday Blitz January 31 Early 2023"]
[White "Goldin, Roman"]
[Black "Alex_Sahakyan2006"]
[WhiteFideId "2803860"]
[WhiteElo "2322"]
[BlackElo "2661"]
[Result "0-1"]
[Round "01"]
[TimeControl "180+2"]
[Date "2023.01.31"]
[WhiteClock "0:00:01"]
[BlackClock "0:00:33"]

1. Nf3 {[%clk 0:02:56]}  g6 {[%clk 0:02:56]} 2. d4 {[%clk 0:02:55]}  Bg7 {[%clk 0:02:56]} 3. e4 {[%clk 0:02:55]}  c6 {[%clk 0:02:54]} 4. c4 {[%clk 0:02:53]}  d6 {[%clk 0:02:53]} 5. Nc3 {[%clk 0:02:52]}  Bg4 {[%clk 0:02:52]} 6. Be2 {[%clk 0:02:50]}  Nd7 {[%clk 0:02:51]} 7. Be3 {[%clk 0:02:47]}  Ngf6 {[%clk 0:02:51]} 8. O-O {[%clk 0:02:41]}  O-O {[%clk 0:02:50]} 9. h3 {[%clk 0:02:22]}  Bxf3 {[%clk 0:02:50]} 10. Bxf3 {[%clk 0:02:22]}  e5 {[%clk 0:02:50]} 11. g3 {[%clk 0:02:11]}  Qe7 {[%clk 0:02:47]} 12. Bg2 {[%clk 0:02:10]}  a5 {[%clk 0:02:28]} 13. Qd2 {[%clk 0:01:52]}  Rad8 {[%clk 0:02:20]} 14. Rad1 {[%clk 0:01:50]}  exd4 {[%clk 0:02:17]} 15. Bxd4 {[%clk 0:01:50]}  Nc5 {[%clk 0:02:18]} 16. Rfe1 {[%clk 0:01:49]}  Nh5 {[%clk 0:01:40]} 17. Bxg7 {[%clk 0:01:38]}  Nxg7 {[%clk 0:01:41]} 18. f4 {[%clk 0:01:35]}  Rfe8 {[%clk 0:01:36]} 19. Qf2 {[%clk 0:01:33]}  Nge6 {[%clk 0:01:35]} 20. Rd2 {[%clk 0:01:28]}  Rd7 {[%clk 0:01:26]} 21. Rde2 {[%clk 0:01:21]}  Qf6 {[%clk 0:01:23]} 22. Rd1 {[%clk 0:00:59]}  Red8 {[%clk 0:01:20]} 23. Red2 {[%clk 0:00:57]}  a4 {[%clk 0:01:11]} 24. Qe3 {[%clk 0:00:54]}  Kg7 {[%clk 0:01:09]} 25. a3 {[%clk 0:00:49]}  Nb3 {[%clk 0:01:01]} 26. Rxd6 {[%clk 0:00:47]}  Rxd6 {[%clk 0:00:58]} 27. Rxd6 {[%clk 0:00:47]}  Rxd6 {[%clk 0:00:54]} 28. e5 {[%clk 0:00:47]}  Qd8 {[%clk 0:00:53]} 29. exd6 {[%clk 0:00:47]}  Qxd6 {[%clk 0:00:54]} 30. Nxa4 {[%clk 0:00:39]}  Qd1+ {[%clk 0:00:49]} 31. Kh2 {[%clk 0:00:39]}  Nbd4 {[%clk 0:00:48]} 32. Nc3 {[%clk 0:00:32]}  Qc2 {[%clk 0:00:48]} 33. g4 {[%clk 0:00:26]}  Qxb2 {[%clk 0:00:40]} 34. f5 {[%clk 0:00:22]}  gxf5 {[%clk 0:00:40]} 35. gxf5 {[%clk 0:00:23]}  Nxf5 {[%clk 0:00:40]} 36. Qe5+ {[%clk 0:00:21]}  Kg6 {[%clk 0:00:40]} 37. Kg1 {[%clk 0:00:04]}  Qc1+ {[%clk 0:00:37]} 38. Kh2 {[%clk 0:00:01]}  Qf4+ {[%clk 0:00:32]} 39. Qxf4 {[%clk 0:00:01]}  Nxf4 {[%clk 0:00:33]} 0-1


[Site "https://www.chess.com"]

[Event "Titled Tuesday Blitz January 31 Early 2023"]
[White "Schut, Han"]
[Black "Florescu, Codrut-Constantin"]
[WhiteFideId "1005561"]
[BlackFideId "1202200"]
[WhiteElo "2101"]
[BlackElo "2259"]
[Result "0-1"]
[Round "01"]
[TimeControl "180+2"]
[Date "2023.01.31"]
[WhiteClock "0:00:09"]
[BlackClock "0:01:17"]

1. e4 {[%clk 0:03:00]}  c5 {[%clk 0:02:59]} 2. Nf3 {[%clk 0:03:00]}  e6 {[%clk 0:02:59]} 3. c4 {[%clk 0:03:00]}  Nc6 {[%clk 0:02:57]} 4. Nc3 {[%clk 0:03:01]}  Nf6 {[%clk 0:02:57]} 5. Be2 {[%clk 0:03:00]}  b6 {[%clk 0:02:57]} 6. O-O {[%clk 0:02:59]}  Bb7 {[%clk 0:02:57]} 7. Re1 {[%clk 0:02:57]}  Qb8 {[%clk 0:02:55]} 8. d4 {[%clk 0:02:53]}  cxd4 {[%clk 0:02:54]} 9. Nxd4 {[%clk 0:02:53]}  Nxd4 {[%clk 0:02:54]} 10. Qxd4 {[%clk 0:02:53]}  Bc5 {[%clk 0:02:55]} 11. Qd3 {[%clk 0:02:50]}  h5 {[%clk 0:02:54]} 12. g3 {[%clk 0:02:31]}  Ng4 {[%clk 0:02:42]} 13. Bxg4 {[%clk 0:02:16]}  hxg4 {[%clk 0:02:43]} 14. Bf4 {[%clk 0:02:14]}  d6 {[%clk 0:02:34]} 15. a3 {[%clk 0:02:09]}  a5 {[%clk 0:02:33]} 16. Nb5 {[%clk 0:02:09]}  e5 {[%clk 0:02:33]} 17. Be3 {[%clk 0:02:03]}  Ke7 {[%clk 0:02:14]} 18. Rad1 {[%clk 0:01:48]}  Rd8 {[%clk 0:02:12]} 19. Bxc5 {[%clk 0:01:20]}  bxc5 {[%clk 0:02:06]} 20. Qe3 {[%clk 0:01:10]}  f6 {[%clk 0:02:06]} 21. Rd2 {[%clk 0:01:01]}  Ra6 {[%clk 0:02:05]} 22. Red1 {[%clk 0:01:01]}  Qc8 {[%clk 0:02:04]} 23. Nc3 {[%clk 0:00:47]}  Rb6 {[%clk 0:02:02]} 24. Na4 {[%clk 0:00:41]}  Ra6 {[%clk 0:01:58]} 25. Nc3 {[%clk 0:00:40]}  Qe6 {[%clk 0:01:57]} 26. Qe2 {[%clk 0:00:37]}  Bc6 {[%clk 0:01:50]} 27. Rd3 {[%clk 0:00:20]}  Rb6 {[%clk 0:01:49]} 28. R3d2 {[%clk 0:00:20]}  g6 {[%clk 0:01:45]} 29. Kg2 {[%clk 0:00:20]}  f5 {[%clk 0:01:45]} 30. Kf1 {[%clk 0:00:20]}  f4 {[%clk 0:01:34]} 31. Nd5+ {[%clk 0:00:18]}  Bxd5 {[%clk 0:01:34]} 32. exd5 {[%clk 0:00:18]}  Qf5 {[%clk 0:01:33]} 33. gxf4 {[%clk 0:00:13]}  Qxf4 {[%clk 0:01:34]} 34. Kg2 {[%clk 0:00:12]}  Rf8 {[%clk 0:01:32]} 35. Rh1 {[%clk 0:00:13]}  Rb3 {[%clk 0:01:31]} 36. Kg1 {[%clk 0:00:10]}  Rh3 {[%clk 0:01:21]} 37. Kg2 {[%clk 0:00:10]}  Rfh8 {[%clk 0:01:20]} 38. Kg1 {[%clk 0:00:10]}  Rxh2 {[%clk 0:01:20]} 39. Rxh2 {[%clk 0:00:09]}  Qxh2+ {[%clk 0:01:18]} 40. Kf1 {[%clk 0:00:09]}  Qh1# {[%clk 0:01:17]} 0-1


[Site "https://www.chess.com"]

[Event "Titled Tuesday Blitz January 31 Early 2023"]
[White "Abdilkhair, Abilmansur"]
[Black "Atakhan, Abtin"]
[WhiteFideId "13716417"]
[BlackFideId "22502203"]
[WhiteElo "2268"]
[BlackElo "2422"]
[Result "0-1"]
[Round "01"]
[TimeControl "180+2"]
[Date "2023.01.31"]
[WhiteClock "0:00:03"]
[BlackClock "0:01:36"]

1. e4 {[%clk 0:01:14]}  c5 {[%clk 0:02:59]} 2. Nf3 {[%clk 0:01:06]}  d6 {[%clk 0:02:59]} 3. Bb5+ {[%clk 0:01:05]}  Nd7 {[%clk 0:03:00]} 4. d4 {[%clk 0:00:59]}  cxd4 {[%clk 0:03:01]} 5. Qxd4 {[%clk 0:01:00]}  a6 {[%clk 0:03:01]} 6. Bxd7+ {[%clk 0:01:00]}  Bxd7 {[%clk 0:03:01]} 7. Nc3 {[%clk 0:01:00]}  Nf6 {[%clk 0:03:02]} 8. O-O {[%clk 0:00:59]}  e6 {[%clk 0:02:58]} 9. Bg5 {[%clk 0:00:55]}  Be7 {[%clk 0:02:58]} 10. Rad1 {[%clk 0:00:52]}  Bc6 {[%clk 0:02:53]} 11. e5 {[%clk 0:00:48]}  Bxf3 {[%clk 0:02:12]} 12. gxf3 {[%clk 0:00:44]}  dxe5 {[%clk 0:01:49]} 13. Qa4+ {[%clk 0:00:39]}  Nd7 {[%clk 0:01:50]} 14. Bxe7 {[%clk 0:00:23]}  Qxe7 {[%clk 0:01:49]} 15. Ne4 {[%clk 0:00:24]}  O-O-O {[%clk 0:01:45]} 16. Nd6+ {[%clk 0:00:18]}  Kb8 {[%clk 0:01:44]} 17. Qb4 {[%clk 0:00:14]}  Nf6 {[%clk 0:01:43]} 18. Rd3 {[%clk 0:00:12]}  Nd5 {[%clk 0:01:42]} 19. Qb3 {[%clk 0:00:05]}  Rxd6 {[%clk 0:01:40]} 20. Rfd1 {[%clk 0:00:04]}  Rhd8 {[%clk 0:01:36]} 21. Qa3 {[%clk 0:00:03]} 0-1


[Site "https://www.chess.com"]

[Event "Titled Tuesday Blitz January 31 Early 2023"]
[White "Carnicelli, Valerio"]
[Black "Pace, Christopher"]
[WhiteFideId "856185"]
[BlackFideId "2610167"]
[WhiteElo "2370"]
[BlackElo "2053"]
[Result "1-0"]
[Round "01"]
[TimeControl "180+2"]
[Date "2023.01.31"]
[WhiteClock "0:01:38"]
[BlackClock "0:00:23"]

1. Nf3 {[%clk 0:03:00]}  Nf6 {[%clk 0:02:47]} 2. g3 {[%clk 0:03:01]}  g6 {[%clk 0:02:46]} 3. Bg2 {[%clk 0:03:01]}  Bg7 {[%clk 0:02:47]} 4. O-O {[%clk 0:03:02]}  O-O {[%clk 0:02:48]} 5. d4 {[%clk 0:03:02]}  d6 {[%clk 0:02:46]} 6. b3 {[%clk 0:03:02]}  c5 {[%clk 0:02:43]} 7. Bb2 {[%clk 0:02:59]}  cxd4 {[%clk 0:02:39]} 8. Nxd4 {[%clk 0:02:59]}  Qb6 {[%clk 0:02:40]} 9. c4 {[%clk 0:02:59]}  Nc6 {[%clk 0:02:39]} 10. Nxc6 {[%clk 0:02:47]}  bxc6 {[%clk 0:02:38]} 11. Qd4 {[%clk 0:02:47]}  c5 {[%clk 0:02:31]} 12. Qd2 {[%clk 0:02:46]}  Bb7 {[%clk 0:02:31]} 13. Bxb7 {[%clk 0:02:40]}  Qxb7 {[%clk 0:02:32]} 14. Nc3 {[%clk 0:02:38]}  Ne4 {[%clk 0:02:24]} 15. Nxe4 {[%clk 0:02:38]}  Qxe4 {[%clk 0:02:15]} 16. Bxg7 {[%clk 0:02:37]}  Kxg7 {[%clk 0:02:16]} 17. f3 {[%clk 0:02:38]}  Qc6 {[%clk 0:01:42]} 18. e4 {[%clk 0:02:38]}  a5 {[%clk 0:01:42]} 19. f4 {[%clk 0:02:19]}  Qxe4 {[%clk 0:01:34]} 20. Rae1 {[%clk 0:02:19]}  Qb7 {[%clk 0:01:35]} 21. f5 {[%clk 0:02:19]}  Kg8 {[%clk 0:00:48]} 22. Rxe7 {[%clk 0:01:41]}  Qxe7 {[%clk 0:00:32]} 23. f6 {[%clk 0:01:41]}  Qe5 {[%clk 0:00:23]} 24. Qh6 {[%clk 0:01:39]}  Qd4+ {[%clk 0:00:23]} 25. Rf2 {[%clk 0:01:38]} 1-0


[Site "https://www.chess.com"]

[Event "Titled Tuesday Blitz January 31 Early 2023"]
[White "Kvaloy, Aksel Bu"]
[Black "Liimatainen, Jero"]
[WhiteFideId "1528815"]
[BlackFideId "509531"]
[WhiteElo "2321"]
[BlackElo "1948"]
[Result "0-1"]
[Round "01"]
[TimeControl "180+2"]
[Date "2023.01.31"]
[WhiteClock "0:00:59"]
[BlackClock "0:00:18"]

1. d4 {[%clk 0:03:00]}  Nf6 {[%clk 0:02:57]} 2. c4 {[%clk 0:03:00]}  e6 {[%clk 0:02:56]} 3. g3 {[%clk 0:03:00]}  d5 {[%clk 0:02:46]} 4. Nf3 {[%clk 0:03:00]}  Be7 {[%clk 0:02:46]} 5. Bg2 {[%clk 0:03:00]}  O-O {[%clk 0:02:47]} 6. O-O {[%clk 0:03:00]}  c6 {[%clk 0:02:47]} 7. Qc2 {[%clk 0:03:00]}  b6 {[%clk 0:02:46]} 8. Nbd2 {[%clk 0:03:01]}  Bb7 {[%clk 0:02:44]} 9. e4 {[%clk 0:03:01]}  Na6 {[%clk 0:02:43]} 10. a3 {[%clk 0:02:59]}  c5 {[%clk 0:02:42]} 11. dxc5 {[%clk 0:02:54]}  dxe4 {[%clk 0:02:18]} 12. Ng5 {[%clk 0:02:47]}  Nxc5 {[%clk 0:02:16]} 13. b4 {[%clk 0:02:33]}  Nd3 {[%clk 0:02:11]} 14. Ndxe4 {[%clk 0:02:31]}  Nxe4 {[%clk 0:02:01]} 15. Nxe4 {[%clk 0:02:32]}  Nxc1 {[%clk 0:01:59]} 16. Raxc1 {[%clk 0:02:31]}  Qc7 {[%clk 0:01:57]} 17. Rfd1 {[%clk 0:02:23]}  Rfd8 {[%clk 0:01:56]} 18. Qb3 {[%clk 0:02:20]}  Rac8 {[%clk 0:01:25]} 19. Rxd8+ {[%clk 0:02:05]}  Qxd8 {[%clk 0:01:12]} 20. h4 {[%clk 0:01:35]}  h6 {[%clk 0:00:48]} 21. Qe3 {[%clk 0:01:17]}  a5 {[%clk 0:00:40]} 22. c5 {[%clk 0:01:16]}  axb4 {[%clk 0:00:39]} 23. axb4 {[%clk 0:01:17]}  Bxe4 {[%clk 0:00:38]} 24. Bxe4 {[%clk 0:01:17]}  bxc5 {[%clk 0:00:39]} 25. bxc5 {[%clk 0:01:18]}  g5 {[%clk 0:00:28]} 26. h5 {[%clk 0:01:11]}  g4 {[%clk 0:00:27]} 27. Qxh6 {[%clk 0:01:05]}  Bg5 {[%clk 0:00:26]} 28. Bh7+ {[%clk 0:01:03]}  Kh8 {[%clk 0:00:24]} 29. Bg6+ {[%clk 0:01:04]}  Bxh6 {[%clk 0:00:24]} 30. Bxf7 {[%clk 0:00:56]}  Bxc1 {[%clk 0:00:21]} 31. Bxe6 {[%clk 0:00:56]}  Qe7 {[%clk 0:00:19]} 32. Bxg4 {[%clk 0:00:57]}  Rxc5 {[%clk 0:00:18]} 33. Kg2 {[%clk 0:00:57]}  Rg5 {[%clk 0:00:19]} 34. Bf3 {[%clk 0:00:58]}  Qe1 {[%clk 0:00:18]} 35. h6 {[%clk 0:00:58]}  Be3 {[%clk 0:00:17]} 36. fxe3 {[%clk 0:00:58]}  Qxe3 {[%clk 0:00:17]} 37. Bb7 {[%clk 0:00:57]}  Qxg3+ {[%clk 0:00:17]} 38. Kf1 {[%clk 0:00:58]}  Rf5+ {[%clk 0:00:16]} 39. Ke2 {[%clk 0:00:58]}  Rf2+ {[%clk 0:00:17]} 40. Ke1 {[%clk 0:00:59]}  Qg1# {[%clk 0:00:18]} 0-1


[Site "https://www.chess.com"]

[Event "Titled Tuesday Blitz January 31 Early 2023"]
[White "Manon-og, Ramon Jr."]
[Black "Seemann, Jakub"]
[WhiteFideId "5200776"]
[BlackFideId "21874697"]
[WhiteElo "1999"]
[BlackElo "2446"]
[Result "1-0"]
[Round "01"]
[TimeControl "180+2"]
[Date "2023.01.31"]
[WhiteClock "0:01:01"]
[BlackClock "0:00:06"]

1. e4 {[%clk 0:03:00]}  c6 {[%clk 0:02:53]} 2. d4 {[%clk 0:02:39]}  d6 {[%clk 0:02:51]} 3. c4 {[%clk 0:02:39]}  g6 {[%clk 0:02:50]} 4. Nc3 {[%clk 0:02:40]}  Bg7 {[%clk 0:02:50]} 5. f4 {[%clk 0:02:40]}  Nf6 {[%clk 0:02:48]} 6. Nf3 {[%clk 0:02:41]}  O-O {[%clk 0:02:48]} 7. e5 {[%clk 0:02:40]}  Nfd7 {[%clk 0:02:46]} 8. Bd3 {[%clk 0:02:40]}  c5 {[%clk 0:02:44]} 9. exd6 {[%clk 0:02:31]}  exd6 {[%clk 0:02:42]} 10. d5 {[%clk 0:02:31]}  Na6 {[%clk 0:02:36]} 11. O-O {[%clk 0:02:31]}  Nc7 {[%clk 0:02:32]} 12. f5 {[%clk 0:02:26]}  b5 {[%clk 0:02:19]} 13. Bg5 {[%clk 0:02:24]}  Bf6 {[%clk 0:01:58]} 14. Bh6 {[%clk 0:02:15]}  Re8 {[%clk 0:01:55]} 15. Ne4 {[%clk 0:02:15]}  bxc4 {[%clk 0:01:45]} 16. Bc2 {[%clk 0:02:13]}  Bxb2 {[%clk 0:01:25]} 17. Rb1 {[%clk 0:02:08]}  Bg7 {[%clk 0:01:16]} 18. Bxg7 {[%clk 0:02:03]}  Kxg7 {[%clk 0:01:17]} 19. Nxd6 {[%clk 0:02:04]}  Re3 {[%clk 0:01:07]} 20. Nxc4 {[%clk 0:01:48]}  Rc3 {[%clk 0:01:06]} 21. fxg6 {[%clk 0:01:26]}  hxg6 {[%clk 0:00:40]} 22. Nce5 {[%clk 0:01:23]}  Nf6 {[%clk 0:00:26]} 23. d6 {[%clk 0:01:20]}  Ncd5 {[%clk 0:00:26]} 24. Ng5 {[%clk 0:01:18]}  Qxd6 {[%clk 0:00:20]} 25. Ngxf7 {[%clk 0:01:16]}  Qe7 {[%clk 0:00:14]} 26. Bxg6 {[%clk 0:01:15]}  Ne3 {[%clk 0:00:13]} 27. Qd2 {[%clk 0:01:11]}  Ra3 {[%clk 0:00:07]} 28. Rf3 {[%clk 0:01:04]}  Neg4 {[%clk 0:00:07]} 29. Rxa3 {[%clk 0:01:03]}  Nxe5 {[%clk 0:00:06]} 30. Qh6+ {[%clk 0:01:01]} 1-0


[Site "https://www.chess.com"]